fUST/lending_fUST_20250527
["ID","MTS","AMOUNT","RATE_DAILY","PERIOD"]
[362498992,1748339443815,-430.0,0.00019452,2]
[362498994,1748339443825,-162.3,0.00019452,2]
[362498996,1748339443834,-430.0,0.00019452,2]
[362498998,1748339443844,-430.0,0.00019452,2]
[362499000,1748339443853,-500.0,0.00019452,2]
[362499002,1748339443863,-307.58699999,0.00019453,2]
[362499004,1748339443872,-2055.82682586,0.00019521,2]
[362499006,1748339443881,-195.33850033,0.00019726,2]
[362499008,1748339443890,-430.0,0.00019726,2]
[362499010,1748339443899,-177.67,0.00019726,2]
[362499011,1748339443909,-430.0,0.00019726,2]
[362499013,1748339443919,-430.0,0.00019726,2]
[362499015,1748339443928,-430.0,0.00019726,2]
[362499017,1748339443937,-430.0,0.00019726,2]
[362499019,1748339443946,-430.0,0.00019726,2]
[362499021,1748339443955,-430.0,0.00019726,2]
[362499025,1748339443965,-254.14470734,0.00019726,2]
[362499027,1748339443976,-430.0,0.00019726,2]
[362499029,1748339443985,-430.0,0.00019726,2]
[362499031,1748339443994,-430.0,0.00019726,2]
[362499033,1748339444003,-430.0,0.00019726,2]
[362499035,1748339444013,-482.94,0.00019726,2]
[362499037,1748339444022,-430.0,0.00019726,2]
[362499039,1748339444031,-430.0,0.00019726,2]
[362499041,1748339444040,-432.8,0.00019726,2]
[362499043,1748339444049,-430.0,0.00019726,2]
[362499045,1748339444058,-430.0,0.00019726,2]
[362499047,1748339444068,-430.0,0.00019726,2]
[362499048,1748339444077,-430.0,0.00019726,2]
[362499049,1748339444087,-430.0,0.00019726,2]
[362499050,1748339444096,-494.16,0.00019726,2]
[362499051,1748339444106,-430.0,0.00019726,2]
[362499052,1748339444115,-430.0,0.00019726,2]
[362499053,1748339444124,-430.0,0.00019726,2]
[362499054,1748339444133,-430.0,0.00019726,2]
[362499055,1748339444143,-430.0,0.00019726,2]
[362499056,1748339444152,-528.69128461,0.00019726,2]
[362499057,1748339444161,-430.0,0.00019726,2]
[362499058,1748339444171,-430.0,0.00019726,2]
[362499060,1748339444286,-430.0,0.00019726,2]
[362499061,1748339444296,-430.0,0.00019726,2]
[362499063,1748339444305,-430.0,0.00019726,2]
[362499065,1748339444315,-430.0,0.00019726,2]
[362499067,1748339444325,-430.0,0.00019726,2]
[362499069,1748339444334,-430.0,0.00019726,2]
[362499071,1748339444344,-430.0,0.00019726,2]
[362499073,1748339444353,-430.0,0.00019726,2]
[362499075,1748339444362,-430.0,0.00019726,2]
[362499077,1748339444371,-528.73,0.00019726,2]
[362499079,1748339444380,-430.0,0.00019726,2]
[362499081,1748339444389,-430.0,0.00019726,2]
[362499083,1748339444399,-430.0,0.00019726,2]
[362499085,1748339444408,-430.0,0.00019726,2]
[362499087,1748339444418,-430.0,0.00019726,2]
[362499089,1748339444427,-430.0,0.00019726,2]
[362499091,1748339444437,-430.0,0.00019726,2]
[362499093,1748339444446,-430.0,0.00019726,2]
[362499095,1748339444457,-430.0,0.00019726,2]
[362499097,1748339444466,-430.0,0.00019726,2]
[362499099,1748339444475,-430.0,0.00019726,2]
[362499101,1748339444485,-430.0,0.00019726,2]
[362499103,1748339444494,-430.0,0.00019726,2]
[362499104,1748339444504,-1119.9,0.00019726,2]
[362499105,1748339444514,-430.0,0.00019726,2]
[362499107,1748339444523,-430.0,0.00019726,2]
[362499109,1748339444533,-2055.82682586,0.00019728,2]
[362499111,1748339444543,-500.0,0.00019752,2]
[362499113,1748339444552,-184.76783934,0.00019813,2]
[362499114,1748339444562,-212.62946336,0.00019904,2]
[362499117,1748339444572,-842.5625,0.00019904,2]
[362499119,1748339444582,-513.19229648,0.00019918,2]
[362499120,1748339444593,-2055.82682586,0.00019934,2]
[362499123,1748339444603,-430.0,0.0002,2]
[362499125,1748339444613,-430.0,0.0002,2]
[362499127,1748339444623,-430.0,0.0002,2]
[362499128,1748339444633,-430.0,0.0002,2]
[362499130,1748339444642,-430.0,0.0002,2]
[362499133,1748339444652,-432.8,0.0002,2]
[362499134,1748339444664,-430.0,0.0002,2]
[362499136,1748339444674,-430.0,0.0002,2]
[362499138,1748339444683,-283.41,0.0002,2]
[362499140,1748339444693,-311.04,0.0002,2]
[362499142,1748339444703,-430.0,0.0002,2]
[362499144,1748339444713,-494.16,0.0002,2]
[362499146,1748339444722,-430.0,0.0002,2]
[362499148,1748339444732,-430.0,0.0002,2]
[362499150,1748339444743,-430.0,0.0002,2]
[362499152,1748339444753,-430.0,0.0002,2]
[362499154,1748339444762,-430.0,0.0002,2]
[362499156,1748339444772,-430.0,0.0002,2]
[362499158,1748339444782,-430.0,0.0002,2]
[362499160,1748339444792,-194.57,0.0002,2]
[362499162,1748339444802,-344.59,0.0002,2]
[362499165,1748339444812,-430.0,0.0002,2]
[362499167,1748339444821,-430.0,0.0002,2]
[362499168,1748339444831,-430.0,0.0002,2]
[362499170,1748339444842,-430.0,0.0002,2]
[362499172,1748339444852,-430.0,0.0002,2]
[362499174,1748339444861,-430.0,0.0002,2]
[362499176,1748339444870,-430.0,0.0002,2]
[362499178,1748339444880,-163.45,0.0002,2]
[362499180,1748339444889,-1119.9,0.0002,2]
[362499182,1748339444899,-526.96,0.0002,2]
[362499184,1748339444908,-430.0,0.0002,2]
[362499186,1748339444917,-176.80455064,0.0002001,5]
[362499188,1748339444926,-2055.82682586,0.00020141,2]
[362499190,1748339444935,-430.0,0.00020273,2]
[362499192,1748339444944,-159.37,0.00020273,2]
[362499194,1748339444954,-432.8,0.00020273,2]
[362499196,1748339444964,-430.0,0.00020273,2]
[362499198,1748339444974,-430.0,0.00020273,2]
[362499200,1748339444984,-494.16,0.00020273,2]
[362499202,1748339444993,-430.0,0.00020273,2]
[362499204,1748339445003,-430.0,0.00020273,2]
[362499206,1748339445012,-430.0,0.00020273,2]
[362499208,1748339445022,-430.0,0.00020273,2]
[362499210,1748339445031,-430.0,0.00020273,2]
[362499213,1748339445041,-549.21,0.00020273,2]
[362499215,1748339445050,-430.0,0.00020273,2]
[362499217,1748339445059,-360.35,0.00020273,2]
[362499219,1748339445069,-430.0,0.00020273,2]
[362499220,1748339445078,-1119.9,0.00020273,2]
[362499222,1748339445088,-430.0,0.00020273,2]
[362499224,1748339445097,-2055.82682586,0.00020348,3]
[362499226,1748339445107,-187.04,0.00020547,2]
[362499228,1748339445116,-432.8,0.00020547,2]
[362499230,1748339445126,-430.0,0.00020547,2]
[362499232,1748339445136,-430.0,0.00020547,2]
[362499234,1748339445145,-494.16,0.00020547,2]
[362499236,1748339445155,-447.87,0.00020547,2]
[362499238,1748339445164,-400.72,0.00020547,2]
[362499240,1748339445174,-385.15,0.00020547,2]
[362499242,1748339445184,-488.51,0.00020547,2]
[362499244,1748339445194,-430.0,0.00020547,2]
[362499246,1748339445203,-522.36,0.00020547,2]
[362499248,1748339445212,-430.0,0.00020547,2]
[362499250,1748339445222,-1119.9,0.00020547,2]
[362499253,1748339445232,-430.0,0.00020547,2]
[362499255,1748339445241,-184.76783934,0.00020548,2]
[362499257,1748339445251,-2055.82682586,0.00020555,3]
[362499259,1748339445261,-923.0,0.00020562,2]
[362499261,1748339445270,-2055.82682586,0.00020762,3]
[362499262,1748339445280,-432.8,0.00020821,2]
[362499264,1748339445289,-430.0,0.00020821,2]
[362499266,1748339445298,-430.0,0.00020821,2]
[362499268,1748339445308,-494.16,0.00020821,2]
[362499271,1748339445318,-430.0,0.00020821,2]
[362499272,1748339445327,-430.0,0.00020821,2]
[362499274,1748339445336,-1119.9,0.00020821,2]
[362499276,1748339445345,-2055.82682586,0.00020969,4]
[362499279,1748339445355,-432.8,0.00021095,2]
[362499281,1748339445365,-430.0,0.00021095,2]
[362499283,1748339445374,-430.0,0.00021095,2]
[362499284,1748339445383,-494.16,0.00021095,2]
[362499287,1748339445393,-430.0,0.00021095,2]
[362499288,1748339445402,-430.0,0.00021095,2]
[362499290,1748339445411,-1119.9,0.00021095,2]
[362499293,1748339445421,-255.0,0.00021125,2]
[362499295,1748339445431,-2055.82682586,0.00021176,4]
[362499296,1748339445440,-184.76783934,0.00021282,2]
[362499298,1748339445450,-432.8,0.00021369,2]
[362499300,1748339445460,-430.0,0.00021369,2]
[362499302,1748339445470,-430.0,0.00021369,2]
[362499304,1748339445482,-494.16,0.00021369,2]
[362499306,1748339445491,-208.4,0.00021369,2]
[362499308,1748339445501,-430.0,0.00021369,2]
[362499310,1748339445510,-1119.9,0.00021369,2]
[362499312,1748339445520,-2055.82682586,0.00021383,5]
[362499314,1748339445529,-2055.82682586,0.0002159,5]
[362499316,1748339445539,-432.8,0.00021643,2]
[362499318,1748339445548,-430.0,0.00021643,2]
[362499320,1748339445557,-430.0,0.00021643,2]
[362499322,1748339445566,-494.16,0.00021643,2]
[362499324,1748339445575,-430.0,0.00021643,2]
[362499326,1748339445584,-1119.9,0.00021643,2]
[362499328,1748339445594,-152.85,0.00021709,2]
[362499330,1748339445603,-2055.82682586,0.00021797,6]
[362499332,1748339445612,-432.8,0.00021917,2]
[362499334,1748339445621,-187.77,0.00021917,2]
[362499337,1748339445630,-430.0,0.00021917,2]
[362499338,1748339445639,-494.16,0.00021917,2]
[362499340,1748339445649,-430.0,0.00021917,2]
[362499343,1748339445659,-1119.9,0.00021917,2]
[362499345,1748339445671,-500.0,0.00021973,2]
[362499346,1748339445680,-24792.68,0.00022,2]
[362499348,1748339445690,-9669.54,0.00022,7]
[362499350,1748339445699,-414654.37,0.00022,7]
[362499352,1748339445709,-4780.12,0.00022,7]
[362499355,1748339445719,-195624.14,0.00022,2]
[362499356,1748339445732,-2055.82682586,0.00022003,6]
[362499358,1748339445742,-184.76783934,0.00022017,2]
[362499360,1748339445751,-215.0738,0.00022117,2]
[362499362,1748339445761,-432.8,0.00022191,2]
[362499364,1748339445771,-430.0,0.00022191,2]
[362499366,1748339445780,-494.16,0.00022191,2]
[362499368,1748339445789,-430.0,0.00022191,2]
[362499370,1748339445799,-1119.9,0.00022191,2]
[362499372,1748339445808,-2055.82682586,0.0002221,6]
[362499374,1748339445817,-2055.82682586,0.00022417,7]
[362499376,1748339445827,-432.8,0.00022465,2]
[362499378,1748339445836,-430.0,0.00022465,2]
[362499380,1748339445845,-494.16,0.00022465,2]
[362499382,1748339445854,-430.0,0.00022465,2]
[362499384,1748339445863,-1119.9,0.00022465,2]
[362499387,1748339445873,-1004.1661701,0.00022521,2]
[362499389,1748339445882,-2055.82682586,0.00022624,7]
[362499391,1748339445891,-203.8,0.00022653,2]
[362499393,1748339445900,-432.8,0.00022739,2]
[362499394,1748339445910,-430.0,0.00022739,2]
[362499396,1748339445919,-494.16,0.00022739,2]
[362499398,1748339445928,-430.0,0.00022739,2]
[362499400,1748339445938,-1119.9,0.00022739,2]
[362499402,1748339445947,-2055.82682586,0.00022831,8]
[362499404,1748339445957,-432.8,0.00023013,2]
[362499406,1748339445966,-430.0,0.00023013,2]
[362499408,1748339445976,-494.16,0.00023013,2]
[362499410,1748339445985,-430.0,0.00023013,2]
[362499412,1748339445994,-1119.9,0.00023013,2]
[362499414,1748339446004,-2055.82682586,0.00023038,8]
[362499416,1748339446014,-24792.68,0.000232,2]
[362499419,1748339446023,-56539.53968324,0.000232,7]
[362499471,1748339446500,-1345.92593561,0.000232,7]
[362499492,1748339446693,-518.08116728,0.00018909,2]
[362499528,1748339447087,-4481.91883272,0.00018909,2]
[362499530,1748339447096,-500.0,0.00019099,2]
[362499532,1748339447106,-500.0,0.00019099,2]
[362499534,1748339447115,-500.0,0.00019099,2]
[362499536,1748339447125,-225.82966839,0.00019099,2]
[362499538,1748339447134,-500.0,0.00019099,2]
[362499540,1748339447144,-206.18620081,0.00019099,2]
[362499542,1748339447153,-500.0,0.00019177,2]
[362499544,1748339447162,-602.63374956,0.00019177,2]
[362499546,1748339447172,-500.0,0.00019177,2]
[362499548,1748339447181,-450.0,0.00019178,2]
[362499550,1748339447191,-430.0,0.00019178,2]
[362499552,1748339447200,-400.0,0.00019178,2]
[362499554,1748339447210,-400.0,0.00019178,2]
[362499556,1748339447219,-430.0,0.00019452,2]
[362499558,1748339447229,-430.0,0.00019726,2]
[362499560,1748339447239,-36345.06781413,0.000232,7]
[362499563,1748339447251,-101164.38811742,0.000232,7]
[362499565,1748339447263,-1907.18106817,0.000232,7]
[362499633,1748339620182,164.752036,0.00013699,2]
[362499635,1748339727497,-12302.0,0.000161,2]
[362499636,1748339837242,1755.69982268,0.00016,2]
[362499637,1748339837267,3244.30017732,0.00016,2]
[362499638,1748339852561,5000.0,0.00016,2]
[362499639,1748339868517,5000.0,0.00016,2]
[362499640,1748339884806,4657.98622268,0.00016,2]
[362499641,1748339884833,342.01377732,0.00016,2]
[362499642,1748339900110,5000.0,0.00016,2]
[362499643,1748339916061,5000.0,0.00016,2]
[362499644,1748339931261,5000.0,0.00016,2]
[362499645,1748339947718,2560.27262268,0.00016,2]
[362499646,1748339947742,2439.72737732,0.00016,2]
[362499647,1748339963995,5000.0,0.00016,2]
[362499648,1748339979806,5000.0,0.00016,2]
[362499649,1748339995601,5000.0,0.00016,2]
[362499650,1748340010897,462.55902268,0.00016,2]
[362499651,1748340010922,4537.44097732,0.00016,2]
[362499652,1748340026799,5000.0,0.00016,2]
[362499653,1748340042314,5000.0,0.00016,2]
[362499656,1748340057520,3364.84542268,0.00016,2]
[362499657,1748340057545,1635.15457732,0.00016,2]
[362499658,1748340073324,5000.0,0.00016,2]
[362499659,1748340089991,5000.0,0.00016,2]
[362499660,1748340105772,5000.0,0.00016,2]
[362499661,1748340121024,1267.13182268,0.00016,2]
[362499662,1748340121048,3732.86817732,0.00016,2]
[362499663,1748340136764,5000.0,0.00016,2]
[362499664,1748340153008,5000.0,0.00016,2]
[362499665,1748340168877,4169.41822268,0.00016,2]
[362499666,1748340168906,830.58177732,0.00016,2]
[362499667,1748340184779,5000.0,0.00016,2]
[362499668,1748340200774,5000.0,0.00016,2]
[362499669,1748340216114,5000.0,0.00016,2]
[362499670,1748340227984,500.0,0.00024658,120]
[362499671,1748340231602,2071.70462268,0.00016,2]
[362499672,1748340231627,2928.29537732,0.00016,2]
[362499673,1748340232719,1000.0,0.00024,120]
[362499674,1748340244076,500.0,0.00024658,120]
[362499675,1748340247557,5000.0,0.00016,2]
[362499676,1748340258598,500.0,0.00024658,120]
[362499677,1748340262989,5000.0,0.00016,2]
[362499678,1748340267246,500.0,0.00024658,120]
[362499679,1748340273495,500.0,0.00024658,120]
[362499680,1748340279167,4973.99102268,0.00016,2]
[362499681,1748340279191,26.00897732,0.00016,2]
[362499682,1748340280207,500.0,0.00024658,120]
[362499683,1748340295474,5000.0,0.00016,2]
[362499684,1748340297387,500.0,0.00024658,120]
[362499685,1748340308626,500.0,0.00024658,120]
[362499686,1748340310735,5000.0,0.00016,2]
[362499687,1748340319400,500.0,0.00024658,120]
[362499688,1748340326080,5000.0,0.00016,2]
[362499689,1748340329819,500.0,0.00024658,120]
[362499690,1748340338464,500.0,0.00024658,120]
[362499691,1748340341527,2876.27742268,0.00016,2]
[362499692,1748340341553,2123.72257732,0.00016,2]
[362499693,1748340346207,500.0,0.00024658,120]
[362499694,1748340354116,500.0,0.00024658,120]
[362499695,1748340356716,5000.0,0.00016,2]
[362499696,1748340362906,500.0,0.00024658,120]
[362499697,1748340371945,5000.0,0.00016,2]
[362499698,1748340372126,500.0,0.00024658,120]
[362499699,1748340381178,500.0,0.00024658,120]
[362499700,1748340387864,5000.0,0.00016,2]
[362499701,1748340394069,500.0,0.00024658,120]
[362499702,1748340402745,500.0,0.00024658,120]
[362499703,1748340403146,778.56382268,0.00016,2]
[362499704,1748340403169,4221.43617732,0.00016,2]
[362499705,1748340418302,5000.0,0.00016,2]
[362499706,1748340427127,-168.92064347,0.0001609,2]
[362499707,1748340433791,5000.0,0.00016,2]
[362499708,1748340438112,-347.13798704,0.0001609,2]
[362499709,1748340439087,-495.0,0.0001609,2]
[362499710,1748340441529,500.0,0.00024658,120]
[362499711,1748340449027,3680.85022268,0.00016,2]
[362499712,1748340449052,1319.14977732,0.00016,2]
[362499713,1748340451762,500.0,0.00024658,120]
[362499715,1748340461445,500.0,0.00024658,120]
[362499716,1748340465340,5000.0,0.00016,2]
[362499717,1748340468558,500.0,0.00024658,120]
[362499719,1748340475664,500.0,0.00024658,120]
[362499720,1748340480686,5000.0,0.00016,2]
[362499721,1748340490704,500.0,0.00024658,120]
[362499722,1748340496997,3444.82555505,0.00016,2]
[362499723,1748340500067,500.0,0.00024658,120]
[362499724,1748340509869,500.0,0.00024658,120]
[362499726,1748340530474,500.0,0.00024658,120]
[362499727,1748340545982,500.0,0.00024658,120]
[362499728,1748340551088,-329.62755745,0.0001609,2]
[362499729,1748340551110,-300.0,0.00016099,2]
[362499730,1748340551131,-300.0,0.00016099,2]
[362499731,1748340551153,-3739.07388181,0.000161,2]
[362499732,1748340552809,700.0,0.00024,120]
[362499733,1748340556203,-12263.73060826,0.000161,2]
[362499734,1748340556694,500.0,0.00024658,120]
[362499735,1748340565110,-8378.74146022,0.000161,2]
[362499736,1748340565143,-398.7067511,0.000161,2]
[362499737,1748340567698,500.0,0.00024658,120]
[362499738,1748340571127,-417.0,0.000176,2]
[362499739,1748340571150,-420.0,0.000176,2]
[362499740,1748340571173,-500.0,0.00017888,2]
[362499741,1748340571195,-500.0,0.00017888,2]
[362499742,1748340571217,-167.10342332,0.00017888,2]
[362499743,1748340571240,-500.0,0.00017888,2]
[362499744,1748340571261,-500.0,0.00017888,2]
[362499745,1748340571281,-206.18620081,0.00017888,2]
[362499746,1748340571303,-500.0,0.00017888,2]
[362499747,1748340571325,-584.67160773,0.00017888,2]
[362499748,1748340571346,-23701.08572482,0.0001789,2]
[362499749,1748340577533,450.0,0.000244,120]
[362499750,1748340580690,500.0,0.00024658,120]
[362499751,1748340594171,500.0,0.00024658,120]
[362499752,1748340607333,500.0,0.00024658,120]
[362499753,1748340628710,500.0,0.00024658,120]
[362499777,1748340631767,-1198.91427518,0.0001789,2]
[362499778,1748340631777,-457.8492219,0.000189,2]
[362499779,1748340631786,-473.28963733,0.00019078,2]
[362499780,1748340631796,-167.0,0.00019099,2]
[362499781,1748340631806,-757.0,0.00019099,2]
[362499782,1748340631816,-165.46,0.00019178,2]
[362499783,1748340631826,-165.46,0.00019178,2]
[362499784,1748340631836,-165.47390275,0.00019178,2]
[362499785,1748340631851,-430.0,0.00019178,2]
[362499786,1748340631862,-430.0,0.00019178,2]
[362499787,1748340631871,-430.0,0.00019178,2]
[362499788,1748340631882,-430.0,0.00019178,2]
[362499789,1748340631891,-450.0,0.00019178,2]
[362499790,1748340631902,-430.0,0.00019178,2]
[362499791,1748340631911,-400.0,0.00019178,2]
[362499792,1748340631922,-400.0,0.00019178,2]
[362499793,1748340631932,-430.0,0.00019178,2]
[362499794,1748340631941,-430.0,0.00019178,2]
[362499795,1748340631952,-450.78938147,0.00019178,2]
[362499796,1748340631962,-450.0,0.00019178,2]
[362499797,1748340631972,-430.0,0.00019178,2]
[362499798,1748340631981,-577.93761537,0.00019178,2]
[362499799,1748340631991,-430.0,0.00019178,2]
[362499800,1748340632000,-430.0,0.00019178,2]
[362499801,1748340632011,-430.0,0.00019178,2]
[362499802,1748340632020,-450.0,0.00019178,2]
[362499803,1748340632030,-454.27442159,0.00019178,2]
[362499804,1748340632040,-430.0,0.00019178,2]
[362499805,1748340632052,-450.0,0.00019178,2]
[362499806,1748340632061,-188.36077631,0.00019178,2]
[362499807,1748340632071,-430.0,0.00019178,2]
[362499808,1748340632082,-500.0,0.00019178,2]
[362499809,1748340632093,-500.0,0.00019178,2]
[362499810,1748340632103,-500.0,0.00019178,2]
[362499811,1748340632113,-450.0,0.00019178,2]
[362499812,1748340632124,-430.0,0.00019178,2]
[362499813,1748340632133,-430.0,0.00019178,2]
[362499814,1748340632143,-430.0,0.00019178,2]
[362499815,1748340632153,-430.0,0.00019178,2]
[362499816,1748340632163,-450.0,0.00019178,2]
[362499817,1748340632173,-430.0,0.00019178,2]
[362499818,1748340632182,-359.1495836,0.00019178,2]
[362499819,1748340632192,-219.61606387,0.00019178,2]
[362499820,1748340632210,-210.38393613,0.00019178,2]
[362499821,1748340632220,-430.0,0.00019178,2]
[362499822,1748340632230,-463.45732558,0.00019178,2]
[362499823,1748340632239,-430.0,0.00019178,2]
[362499824,1748340632249,-430.0,0.00019178,2]
[362499825,1748340632259,-430.0,0.00019178,2]
[362499826,1748340632269,-230.0,0.00019178,2]
[362499827,1748340632279,-316.65482973,0.00019178,2]
[362499828,1748340632290,-430.0,0.00019178,2]
[362499829,1748340632299,-430.0,0.00019178,2]
[362499830,1748340632309,-500.0,0.00019178,2]
[362499831,1748340632319,-430.0,0.00019178,2]
[362499832,1748340632328,-430.0,0.00019178,2]
[362499833,1748340632338,-430.0,0.00019178,2]
[362499834,1748340632348,-430.0,0.00019178,2]
[362499835,1748340632358,-430.0,0.00019178,2]
[362499836,1748340632367,-430.0,0.00019178,2]
[362499837,1748340632377,-430.0,0.00019178,2]
[362499838,1748340632387,-430.0,0.00019178,2]
[362499839,1748340632397,-376.78911354,0.00019178,2]
[362499840,1748340632407,-430.0,0.00019178,2]
[362499841,1748340632416,-430.0,0.00019178,2]
[362499842,1748340632425,-430.0,0.00019178,2]
[362499843,1748340632435,-430.0,0.00019178,2]
[362499844,1748340632445,-350.0,0.00019178,2]
[362499845,1748340632456,-430.0,0.00019178,2]
[362499846,1748340632466,-430.0,0.00019178,2]
[362499847,1748340632475,-430.0,0.00019178,2]
[362499848,1748340632485,-350.0,0.00019178,2]
[362499849,1748340632495,-430.0,0.00019178,2]
[362499850,1748340632505,-430.0,0.00019178,2]
[362499851,1748340632515,-430.0,0.00019178,2]
[362499852,1748340632525,-400.0,0.00019178,2]
[362499853,1748340632535,-458.35079593,0.00019178,2]
[362499854,1748340632545,-430.0,0.00019178,2]
[362499855,1748340632555,-430.0,0.00019178,2]
[362499856,1748340632564,-430.0,0.00019178,2]
[362499857,1748340632573,-430.0,0.00019178,2]
[362499858,1748340632583,-430.0,0.00019178,2]
[362499859,1748340632592,-430.0,0.00019178,2]
[362499860,1748340632602,-430.0,0.00019178,2]
[362499861,1748340632612,-430.0,0.00019178,2]
[362499862,1748340632622,-450.0,0.00019178,2]
[362499863,1748340632631,-430.0,0.00019178,2]
[362499864,1748340632640,-450.0,0.00019178,2]
[362499865,1748340632650,-430.0,0.00019178,2]
[362499866,1748340632660,-430.0,0.00019178,2]
[362499867,1748340632670,-500.0,0.00019178,2]
[362499868,1748340632680,-589.32,0.00019178,2]
[362499869,1748340632690,-525.43150531,0.00019178,2]
[362499870,1748340632879,-430.0,0.00019178,2]
[362499871,1748340632891,-430.0,0.00019178,2]
[362499872,1748340632902,-483.75,0.00019178,2]
[362499873,1748340632912,-430.0,0.00019178,2]
[362499874,1748340632922,-430.0,0.00019178,2]
[362499875,1748340632932,-442.68339239,0.00019178,2]
[362499876,1748340632944,-430.0,0.00019178,2]
[362499877,1748340632955,-430.0,0.00019178,2]
[362499878,1748340632965,-430.0,0.00019178,2]
[362499879,1748340632975,-430.0,0.00019178,2]
[362499880,1748340632984,-430.0,0.00019178,2]
[362499881,1748340632994,-400.0,0.00019178,2]
[362499882,1748340633003,-430.0,0.00019178,2]
[362499883,1748340633013,-430.0,0.00019178,2]
[362499884,1748340633023,-430.0,0.00019178,2]
[362499885,1748340633034,-430.0,0.00019178,2]
[362499886,1748340633044,-430.0,0.00019178,2]
[362499887,1748340633059,-430.0,0.00019178,2]
[362499888,1748340633070,-430.0,0.00019178,2]
[362499889,1748340633083,-430.0,0.00019178,2]
[362499890,1748340633094,-430.0,0.00019178,2]
[362499891,1748340633105,-430.0,0.00019178,2]
[362499892,1748340633115,-430.0,0.00019178,2]
[362499893,1748340633127,-430.0,0.00019178,2]
[362499894,1748340633138,-430.0,0.00019178,2]
[362499895,1748340633148,-430.0,0.00019178,2]
[362499896,1748340633159,-430.0,0.00019178,2]
[362499897,1748340633170,-458.13971711,0.00019178,2]
[362499898,1748340633181,-430.0,0.00019178,2]
[362499899,1748340633192,-430.0,0.00019178,2]
[362499900,1748340633202,-400.0,0.00019178,2]
[362499901,1748340633212,-430.0,0.00019178,2]
[362499902,1748340633222,-430.0,0.00019178,2]
[362499903,1748340633233,-430.0,0.00019178,2]
[362499904,1748340633242,-430.0,0.00019178,2]
[362499905,1748340633252,-398.68629981,0.00019178,2]
[362499906,1748340633262,-430.0,0.00019178,2]
[362499907,1748340633272,-430.0,0.00019178,2]
[362499908,1748340633282,-430.0,0.00019178,2]
[362499909,1748340633292,-430.0,0.00019178,2]
[362499910,1748340633302,-400.81676059,0.00019178,2]
[362499911,1748340633312,-400.0,0.00019178,2]
[362499912,1748340633321,-430.0,0.00019178,2]
[362499913,1748340633331,-400.0,0.00019178,2]
[362499914,1748340633341,-430.0,0.00019178,2]
[362499915,1748340633352,-430.0,0.00019178,2]
[362499916,1748340633362,-400.0,0.00019178,2]
[362499917,1748340633372,-430.0,0.00019178,2]
[362499918,1748340633383,-400.0,0.00019178,2]
[362499919,1748340633394,-430.0,0.00019178,2]